bitfinex/quotes_ETHUSD_20220731
["timestamp","ask_amount","ask_price","bid_price","bid_amount"]
[1659230737992,0.61475309,1708.2,1707.7,0.1756]
[1659230738194,3.61475309,1708.2,1707.7,0.1756]
[1659230738352,2.89804672,1708.1,1707.7,0.1756]
[1659230738559,3.63754672,1708.1,1707.4,0.22563]
[1659230738801,3.3,1708.0,1707.5,3.5]
[1659230740089,3.63754672,1708.1,1707.5,3.5]
[1659230740090,3.93754672,1708.1,1707.5,3.5]
[1659230740259,3.49804672,1708.1,1707.5,3.5]
[1659230740463,3.49804672,1708.1,1707.7,6.7935662]
[1659230741287,0.6,1708.1,1707.7,6.7935662]
[1659230741471,3.4705,1708.3,1707.7,6.7935662]
[1659230741677,2.89804672,1708.2,1707.7,6.7935662]
[1659230742089,3.26279981,1708.2,1707.7,6.7935662]
[1659230742505,2.89804672,1708.1,1707.5,3.55]
[1659230742656,2.89804672,1708.1,1707.5,3.5]
[1659230743060,3.19804672,1708.1,1707.5,3.5]
[1659230743300,3.49804672,1708.1,1707.5,3.5]
[1659230744099,3.49804672,1708.1,1707.7,3.5]
[1659230745959,0.6,1708.1,1707.7,3.5]
[1659230746125,3.96475309,1708.2,1707.7,3.58981584]
[1659230746327,0.36475309,1708.2,1707.9,3.5]
[1659230746759,0.66475309,1708.2,1707.7,3.58981584]
[1659230747262,0.66475309,1708.2,1707.7,0.08981584]
[1659230748233,0.66475309,1708.2,1707.6,0.1756]
[1659230750339,3.66475309,1708.2,1707.7,3.5]
[1659230752105,3.66475309,1708.2,1707.6,0.1756]
[1659230752437,3.66475309,1708.2,1707.7,3.5]
[1659230754451,3.66475309,1708.2,1707.7,3.58981584]
[1659230755006,3.66475309,1708.2,1707.7,3.58620608]
[1659230756615,3.66475309,1708.2,1707.7,3.49639024]
[1659230757013,3.66475309,1708.2,1707.7,3.58620608]
[1659230757504,3.66475309,1708.2,1707.7,0.08981584]
[1659230757668,3.66475309,1708.2,1707.6,0.1756]
[1659230758487,3.66475309,1708.2,1707.6,3.67199024]
[1659230759282,3.66475309,1708.2,1707.6,0.1756]
[1659230759895,3.66475309,1708.2,1707.6,3.67199024]
[1659230760082,3.66475309,1708.2,1707.6,0.1756]
[1659230761915,3.66475309,1708.2,1707.7,3.49639024]
[1659230763171,3.66475309,1708.2,1707.6,0.1756]
[1659230763386,3.66475309,1708.2,1707.7,3.49639024]
[1659230764591,3.66475309,1708.2,1707.6,0.1756]
[1659230765027,3.66475309,1708.2,1707.7,3.49639024]
[1659230765530,3.66475309,1708.2,1707.6,0.26541584]
[1659230765742,3.66475309,1708.2,1707.7,3.49639024]
[1659230766209,3.66475309,1708.2,1707.6,0.26541584]
[1659230766790,4.10425309,1708.2,1707.6,0.26541584]
[1659230768429,6.3394,1708.3,1707.9,3.49639024]
[1659230768610,0.05,1708.5,1707.9,6.57001696]
[1659230768811,0.00316514,1708.4,1708.1,3.49639024]
[1659230769601,13.5633,1708.6,1708.1,3.49639024]
[1659230769998,14.1633,1708.6,1708.1,3.49639024]
[1659230770198,14.16646522,1708.6,1708.1,3.49639024]
[1659230770440,3.05496522,1708.6,1708.2,3.49639024]
[1659230770611,3.05496522,1708.6,1708.4,3.49639024]
[1659230770612,0.00316522,1708.6,1708.4,3.49639024]
[1659230770811,0.00316522,1708.6,1708.5,3.49639024]
[1659230771212,11.5,1708.7,1708.5,3.49639024]
[1659230772953,0.4393,1708.9,1708.1,3.54639024]
[1659230773158,3.39096693,1708.9,1708.1,6.39443696]
[1659230773360,3.5,1708.8,1708.1,6.39443696]
[1659230773671,3.86475309,1708.8,1708.1,6.39443696]
[1659230774566,6.64111822,1708.8,1708.1,6.39443696]
[1659230774873,9.53916494,1708.8,1708.1,3.49639024]
[1659230775448,9.53569981,1708.8,1708.1,3.49639024]
[1659230775829,9.53871738,1708.8,1708.1,3.49639024]
[1659230776846,9.53569981,1708.8,1708.1,3.49639024]
[1659230777185,9.53871738,1708.8,1708.1,3.49639024]
[1659230777532,2.89804672,1708.7,1708.0,3.36307]
[1659230777839,3.6,1708.6,1708.0,3.1375]
[1659230778027,6.49804672,1708.6,1707.9,3.49639024]
[1659230778231,3.9047,1708.6,1708.1,3.49639024]
[1659230778484,0.05,1708.8,1708.3,3.58620608]
[1659230778645,0.00306857,1708.7,1708.4,0.4394]
[1659230778829,0.00306857,1708.7,1708.6,0.08981584]
[1659230779055,0.00306857,1708.7,1708.4,0.4394]
[1659230779255,0.00306857,1708.7,1708.3,6.4842528]
[1659230779457,0.00306857,1708.7,1708.5,0.08981584]
[1659230779774,13.8295,1709.0,1708.5,0.08981584]
[1659230779956,3.3,1708.9,1708.5,0.08981584]
[1659230780161,0.00322505,1708.8,1708.5,0.08981584]
[1659230780664,0.05,1709.1,1708.8,0.08981584]
[1659230780900,3.204,1709.6,1709.0,3.49639024]
[1659230781059,3.204,1709.6,1709.2,6.78649034]
[1659230781261,13.9245,1709.9,1709.2,7.07630618]
[1659230781503,0.39009,1709.3,1709.2,10.01768591]
[1659230781712,0.39009,1709.3,1709.2,10.45688591]
[1659230782372,0.39009,1709.3,1709.2,3.62324895]
[1659230782710,0.39009,1709.3,1709.2,0.04333301]
[1659230783085,0.39009,1709.3,1709.0,0.17545]
[1659230783282,0.69009,1709.3,1708.9,3.49639024]
[1659230783864,0.69009,1709.3,1708.8,3.36514315]
[1659230784506,0.69009,1709.3,1708.8,0.04334315]
[1659230784866,3.69009,1709.3,1708.8,0.04334315]
[1659230785072,0.11018416,1709.2,1708.8,0.04334315]
[1659230785710,10.13548981,1709.3,1708.8,0.04334315]
[1659230786179,10.13548981,1709.3,1708.6,0.05]
[1659230786180,3.33724672,1709.2,1708.6,0.05]
[1659230786381,3.26279981,1709.1,1708.4,0.22553]
[1659230786624,6.19804672,1709.0,1708.4,0.17553]
[1659230786801,3.0,1708.9,1708.2,0.05]
[1659230787123,3.0,1708.9,1708.2,2.95764063]
[1659230787486,5.7208,1708.9,1708.2,2.95764063]
[1659230788527,5.7208,1708.9,1708.2,3.13318063]
[1659230788830,5.7208,1708.9,1708.2,6.62957087]
[1659230788985,3.0,1708.9,1708.5,11.02199805]
[1659230789185,0.3,1709.0,1708.5,11.08158149]
[1659230789385,3.4892,1709.2,1708.5,11.08158149]
[1659230789386,3.7892,1709.2,1708.5,11.08158149]
[1659230789579,2.89804672,1709.1,1708.5,0.05958344]
[1659230789781,0.11018416,1708.9,1708.5,0.05958344]
[1659230790596,3.96475309,1709.0,1708.5,0.05958344]
[1659230790786,3.26279981,1709.0,1708.5,0.05958344]
[1659230792011,3.3,1708.9,1708.5,0.05958344]
[1659230792207,3.6,1708.9,1708.5,0.05958344]
[1659230792412,0.05,1709.2,1708.8,6.4842528]
[1659230792602,0.39318892,1709.3,1708.9,3.33734672]
[1659230792798,0.39318892,1709.3,1708.8,6.83373696]
[1659230793010,0.39318892,1709.3,1708.8,2.89804672]
[1659230793180,0.39009,1709.3,1708.8,2.89804672]
[1659230793607,0.39009,1709.3,1708.9,3.49639024]
[1659230794302,0.69009,1709.3,1708.9,3.49639024]
[1659230794498,0.69009,1709.3,1708.8,2.89804672]
[1659230794704,0.11018416,1709.2,1708.7,0.1755]
[1659230795096,10.69458416,1709.2,1708.5,0.05]
[1659230795297,3.36295309,1709.1,1708.4,0.05]
[1659230795497,3.36295309,1709.1,1708.4,0.00342452]
[1659230795498,3.96295309,1709.1,1708.4,0.00342452]
[1659230795726,3.0,1709.0,1708.5,3.49639024]
[1659230795941,2.99714924,1709.0,1708.5,3.49639024]
[1659230796729,3.96295309,1709.1,1708.6,0.00342412]
[1659230797233,2.89804672,1709.0,1708.6,0.00342412]
[1659230797442,0.36475309,1708.9,1708.3,0.22554]
[1659230797601,3.86279981,1708.9,1708.3,0.17554]
[1659230798200,3.86279981,1708.9,1708.3,0.24078123]
[1659230798602,3.00823088,1708.8,1708.3,0.17554]
[1659230798845,0.11018416,1708.6,1708.1,0.05]
[1659230799011,6.09713088,1708.6,1707.9,0.22558]
[1659230799223,6.19804672,1708.5,1707.9,0.17558]
[1659230799397,3.19908416,1708.6,1707.9,0.17558]
[1659230799398,3.0889,1708.6,1708.0,3.49639024]
[1659230799599,3.3,1708.5,1708.0,3.49639024]
[1659230800044,3.41018416,1708.5,1708.0,3.49639024]
[1659230800198,0.3,1708.5,1708.2,3.49639024]
[1659230800408,3.3889,1708.6,1708.2,3.49639024]
[1659230802742,3.3889,1708.6,1708.1,3.35785153]
[1659230802944,3.36475309,1708.5,1708.1,3.29260266]
[1659230803171,3.66475309,1708.5,1708.1,3.29260266]
[1659230803394,6.56279981,1708.5,1708.0,3.49639024]
[1659230804488,6.56279981,1708.5,1707.9,0.17558]
[1659230805044,10.6456,1708.7,1708.4,6.99639024]
[1659230805045,0.05,1708.7,1708.4,6.99639024]
[1659230805283,0.05,1709.0,1708.6,3.49639024]
[1659230805493,0.82929,1709.3,1708.7,2.89804672]
[1659230805494,0.05,1709.2,1708.7,2.89804672]
[1659230805689,0.39009,1709.3,1708.7,2.89804672]
[1659230805690,0.75790277,1709.3,1708.7,2.89804672]
[1659230806363,0.75484309,1709.3,1708.7,2.99291273]
[1659230806576,0.86502725,1709.3,1708.7,2.99291273]
[1659230806895,0.11018416,1709.1,1708.5,0.2255]
[1659230807198,1.08401435,1709.0,1708.3,3.54639024]
[1659230807407,0.11018416,1708.8,1708.2,0.05]
[1659230807701,1.38401435,1709.0,1708.0,0.05]
[1659230807702,0.11018416,1708.4,1708.0,0.05]
[1659230807855,3.1735,1708.6,1707.9,3.49639024]
[1659230808053,6.1735,1708.6,1708.1,6.78841505]
[1659230808253,6.1735,1708.6,1708.1,9.68646177]
[1659230811793,3.1735,1708.6,1708.1,10.12596177]
[1659230812023,3.1735,1708.6,1708.1,6.19007153]
[1659230812381,3.1735,1708.6,1708.2,3.49639024]
[1659230812610,0.02003874,1708.5,1708.0,0.4395]
[1659230812794,0.02003874,1708.5,1707.9,3.72197024]
[1659230812795,0.02003874,1708.5,1707.9,4.11157024]
[1659230813019,0.02003874,1708.5,1707.9,7.00961696]
[1659230813626,0.02003874,1708.5,1707.9,6.57001696]
[1659230813995,0.02003874,1708.5,1707.9,3.67197024]
[1659230814201,0.02003874,1708.5,1707.7,0.05]
[1659230814202,3.62003874,1708.5,1707.7,0.05]
[1659230814402,0.54958416,1708.4,1707.7,2.89804672]
[1659230814635,0.02003874,1708.3,1707.7,2.89804672]
[1659230815396,3.96475309,1708.3,1707.7,2.89804672]
[1659230815802,3.96475309,1708.3,1707.7,2.90291239]
[1659230816241,3.96475309,1708.3,1707.7,0.00486567]
[1659230816438,6.67545309,1708.3,1707.7,0.00486567]
[1659230816829,0.11018416,1708.2,1707.7,0.00486567]
[1659230819039,0.11018416,1708.2,1707.8,3.49639024]
[1659230819941,0.10730233,1708.2,1707.8,3.49639024]
[1659230821077,0.36475309,1708.3,1708.1,3.49639024]
[1659230821232,13.8062,1709.1,1708.5,0.09269767]
[1659230821432,13.8062,1709.1,1708.7,3.49639024]
[1659230821635,10.5837,1709.1,1708.7,3.49639024]
[1659230821866,3.21330615,1709.3,1708.9,3.49639024]
[1659230822027,0.39009,1709.3,1708.9,3.49639024]
[1659230822228,0.39009,1709.3,1708.6,0.05]
[1659230822491,0.82929,1709.3,1708.7,3.49639024]
[1659230822628,0.82929,1709.3,1708.6,2.89804672]
[1659230822629,0.39247215,1709.3,1708.9,3.49639024]
[1659230822830,0.34247215,1709.3,1708.9,3.49639024]
[1659230823571,0.34009,1709.3,1708.9,3.49639024]
[1659230823931,0.34009,1709.3,1708.6,6.61993696]
[1659230824293,0.34009,1709.3,1709.2,3.58908791]
[1659230824497,0.34009,1709.3,1709.2,3.49639024]
[1659230824872,0.34009,1709.3,1709.0,0.09486601]
[1659230825057,0.34009,1709.3,1708.8,0.17548]
[1659230825257,0.34009,1709.3,1708.6,3.2188]
[1659230825471,0.34009,1709.3,1708.6,3.1688]
[1659230825674,0.36475309,1709.2,1708.6,3.1688]
[1659230826107,0.36475309,1709.2,1708.7,3.49639024]
[1659230826254,0.36475309,1709.2,1708.7,3.58908791]
[1659230827475,0.36475309,1709.2,1708.9,3.49639024]
[1659230830605,0.36475309,1709.2,1708.7,3.76945074]
[1659230831384,0.36475309,1709.2,1708.9,3.49639024]
[1659230831558,0.36475309,1709.2,1708.7,3.76945074]
[1659230831789,0.36475309,1709.2,1708.7,0.18036283]
[1659230831989,0.36475309,1709.2,1708.7,0.2730605]
[1659230832451,0.02003874,1709.2,1708.9,0.09269767]
[1659230832597,0.34009,1709.3,1709.1,3.49639024]
[1659230832798,0.34009,1709.3,1709.1,3.93569024]
[1659230833332,0.34009,1709.3,1709.1,3.49639024]
[1659230833537,0.34009,1709.3,1709.0,3.51281672]
[1659230836097,0.34009,1709.3,1709.2,3.49639024]
[1659230836528,0.34009,1709.3,1709.1,2.89804672]
[1659230836698,0.64009,1709.3,1709.0,0.17547]
[1659230836899,0.64009,1709.3,1708.8,2.8839]
[1659230837297,1.30484309,1709.3,1708.8,2.8839]
[1659230837500,1.30484309,1709.3,1708.9,3.49639024]
[1659230839048,0.94009,1709.3,1709.1,3.49639024]
[1659230839248,0.34009,1709.3,1709.1,3.49639024]
[1659230839970,0.34009,1709.3,1709.1,10.16476297]
[1659230840171,0.34009,1709.3,1709.1,6.66476297]
[1659230840345,0.34009,1709.3,1709.1,0.17546]
[1659230841284,0.64009,1709.3,1709.1,0.17546]
[1659230842295,0.64009,1709.3,1709.1,3.67185024]
[1659230842296,0.34009,1709.3,1709.1,3.67185024]
[1659230845184,0.34009,1709.3,1709.1,0.17546]
[1659230845432,0.10730233,1709.2,1708.7,0.22549]
[1659230845634,0.10730233,1709.2,1708.7,0.17549]
[1659230845635,3.00534905,1709.2,1708.7,0.17549]
[1659230845923,0.10730233,1709.0,1708.5,0.05]
[1659230846128,0.10730233,1709.0,1708.4,3.67192024]
[1659230846528,0.10730233,1709.0,1708.4,3.66889527]
[1659230846964,8.90194672,1709.2,1708.4,3.49639024]
[1659230846965,0.10730233,1708.8,1708.4,3.49639024]
[1659230849849,0.96475309,1708.9,1708.4,3.49639024]
[1659230850034,0.77205542,1708.9,1708.4,3.67192024]
[1659230850458,0.77205542,1708.9,1708.6,3.49639024]
[1659230850871,0.77205542,1708.9,1708.4,0.17553]
[1659230851026,0.66475309,1708.9,1708.4,0.17553]
[1659230851438,0.66475309,1708.9,1708.4,0.27039601]
[1659230852320,0.66475309,1708.9,1708.6,3.49639024]
[1659230852522,0.66475309,1708.9,1708.4,3.76678625]
[1659230856279,0.66475309,1708.9,1708.6,3.49639024]
[1659230856834,0.66475309,1708.9,1708.4,0.27039601]
[1659230857248,0.66475309,1708.9,1708.6,3.49639024]
[1659230857569,0.66475309,1708.9,1708.4,3.76678625]
[1659230865013,0.77205542,1708.9,1708.4,3.67192024]
[1659230865374,0.77205542,1708.9,1708.4,3.49639024]
[1659230866078,1.21135542,1708.9,1708.4,3.49639024]
[1659230866298,1.10405309,1708.9,1708.4,3.59125625]
[1659230867023,1.00405309,1708.9,1708.4,3.59125625]
[1659230867373,0.56475309,1708.9,1708.4,3.59125625]
[1659230868730,3.46279981,1708.9,1708.3,3.49639024]
[1659230869021,0.10730233,1708.7,1708.3,3.49255697]
[1659230869366,4.0393,1708.8,1708.3,3.49255697]
[1659230870092,3.6,1708.8,1708.3,3.49255697]
[1659230870641,3.6,1708.8,1708.4,3.29221741]
[1659230871175,0.3,1708.8,1708.4,3.29221741]
[1659230871417,3.7893,1709.0,1708.4,3.29221741]
[1659230871586,6.93734672,1709.0,1708.4,3.29221741]
[1659230872079,6.93734672,1709.0,1708.3,3.66021311]
[1659230872820,0.36475309,1708.9,1708.3,3.66021311]
[1659230876181,3.26279981,1708.9,1708.3,3.66021311]
[1659230876511,3.40730233,1708.8,1708.3,3.49255697]
[1659230876717,6.60534905,1708.8,1708.3,3.49255697]
[1659230877552,0.10730233,1708.6,1708.1,0.05]
[1659230877866,0.10730233,1708.4,1708.0,0.14631]
[1659230878066,0.10730233,1708.4,1707.8,11.5]
[1659230878067,3.10730233,1708.4,1707.8,11.5]
[1659230878219,3.10730233,1708.4,1707.7,11.24185697]
[1659230878415,3.10730233,1708.4,1707.7,14.13990369]
[1659230878416,5.99370233,1708.4,1707.7,14.13990369]
[1659230878858,5.99370233,1708.4,1707.8,0.07089965]
[1659230879654,8.89174905,1708.4,1707.8,0.07089965]
[1659230879855,9.33114905,1708.4,1707.8,0.07089965]
[1659230880477,8.89174905,1708.4,1707.8,0.07089965]
[1659230880721,0.02003874,1708.3,1707.8,0.07089965]
[1659230881304,0.02003874,1708.3,1707.9,3.49255697]
[1659230881684,0.02003874,1708.3,1707.8,0.07089965]
[1659230883212,0.02003874,1708.3,1707.9,3.49255697]
[1659230883425,0.12734107,1708.3,1707.8,0.07089965]
[1659230888631,0.12734107,1708.3,1707.6,0.19634]
[1659230888632,0.10730233,1707.7,1707.6,0.19634]
[1659230888963,2.89804672,1708.2,1707.3,8.3121]
[1659230888964,10.05970233,1708.1,1707.3,0.14637]
[1659230889130,0.10730233,1707.8,1707.3,0.14637]
[1659230889316,0.10730233,1707.8,1707.2,11.5]
[1659230889317,3.00534905,1707.8,1707.2,11.5]
[1659230889517,3.3,1707.7,1707.2,11.5]
[1659230889917,3.3,1707.7,1707.1,3.2275]
[1659230890118,3.3,1707.7,1707.0,8.3121]
[1659230890349,6.19804672,1707.7,1707.0,8.3121]
[1659230891420,0.10730233,1707.5,1707.0,8.3121]
[1659230892572,0.10730233,1707.5,1706.9,0.1464]
[1659230892779,0.10730233,1707.5,1706.9,3.6464]
[1659230893064,0.10430926,1707.5,1706.9,3.6464]
[1659230893474,0.10430926,1707.5,1706.9,0.1464]
[1659230895430,3.00235598,1707.5,1706.9,0.1464]
[1659230895756,6.84276107,1707.4,1706.7,11.1812]
[1659230896095,6.84276107,1707.4,1706.7,11.1312]
[1659230896096,0.02003874,1707.3,1706.7,11.1312]
[1659230896294,0.34471435,1707.2,1706.7,7.8034]
[1659230896502,0.64471435,1707.2,1706.7,11.3034]
[1659230897070,0.64471435,1707.2,1706.6,3.28403]
[1659230897274,0.02003874,1707.1,1706.6,3.28403]
[1659230898172,0.02003874,1707.1,1706.6,0.14643]
[1659230898358,0.36475309,1707.1,1706.6,0.14643]
[1659230898755,0.36475309,1707.1,1706.5,11.3293]
[1659230901909,0.36475309,1707.1,1706.5,7.8293]
[1659230902114,0.46906235,1707.1,1706.6,3.5]
[1659230902323,0.46906235,1707.1,1706.4,3.6304]
[1659230902520,0.46906235,1707.1,1706.4,3.5804]
[1659230902521,0.36475309,1707.1,1706.4,3.5804]
[1659230902690,3.26715309,1707.1,1706.4,3.5804]
[1659230902896,3.26715309,1707.1,1706.5,3.5]
[1659230904088,3.26715309,1707.1,1706.4,0.44562874]
[1659230905300,3.26715309,1707.1,1706.6,3.5]
[1659230905505,3.26715309,1707.1,1706.4,0.49562874]
[1659230905737,3.26715309,1707.1,1706.4,0.44562874]
[1659230905887,3.26715309,1707.1,1706.4,0.00562874]
[1659230906522,3.26715309,1707.1,1706.5,3.5]
[1659230907961,3.26715309,1707.1,1706.4,0.00562874]
[1659230908148,11.8385,1707.2,1706.8,3.5]
[1659230908149,8.2385,1707.2,1706.8,3.5]
[1659230908323,8.1885,1707.2,1706.8,6.88978211]
[1659230908955,11.08654672,1707.2,1706.7,0.14642]
[1659230909165,2.89804672,1707.1,1706.5,0.05]
[1659230909367,6.07704672,1707.1,1706.4,0.14645]
[1659230909550,6.37704672,1707.1,1706.4,0.14645]
[1659230909734,6.37704672,1707.1,1706.5,3.5]
[1659230910060,3.479,1707.1,1706.4,0.14645]
[1659230910277,3.479,1707.1,1706.5,3.5]
[1659230911135,3.479,1707.1,1706.6,3.39094005]
[1659230911932,3.479,1707.1,1706.7,3.5]
[1659230912369,3.82371435,1707.1,1706.7,3.5]
[1659230912971,3.82371435,1707.1,1706.6,6.89094005]
[1659230913621,3.82371435,1707.1,1706.6,3.39094005]
[1659230913824,3.82371435,1707.1,1706.6,6.89094005]
[1659230914437,0.64471435,1707.1,1706.7,3.5]
[1659230914680,0.64471435,1707.1,1706.6,3.39094005]
[1659230915221,0.64471435,1707.1,1706.6,6.89094005]
[1659230915222,0.02003874,1707.0,1706.6,6.89094005]
[1659230915366,0.02003874,1707.0,1706.6,7.03737005]
[1659230916516,0.02003874,1707.0,1706.7,11.46019008]
[1659230916869,0.01617842,1707.0,1706.7,11.46019008]
[1659230917103,3.64471435,1707.1,1706.7,11.46019008]
[1659230917316,3.64471435,1707.1,1706.7,14.3582368]
[1659230917486,3.3,1707.1,1706.7,14.3582368]
[1659230917692,3.3,1707.1,1706.8,2.89804672]
[1659230917890,0.05,1707.4,1707.0,3.5]
[1659230918091,13.8441,1707.6,1707.0,3.5]
[1659230918360,0.05,1707.7,1707.1,2.89804672]
[1659230918615,10.9518,1707.9,1707.2,7.0]
[1659230918816,10.9018,1707.9,1707.4,3.5]
[1659230919921,10.9018,1707.9,1707.2,0.05]
[1659230919922,0.10430926,1707.6,1707.2,0.05]
[1659230920082,3.00235598,1707.6,1706.9,0.05]
[1659230920288,0.01617842,1707.5,1706.8,3.2623]
[1659230920520,0.01617842,1707.5,1706.8,6.11034672]
[1659230920694,3.91422514,1707.5,1706.8,3.35871]
[1659230920893,0.10430926,1707.2,1706.8,3.35871]
[1659230921109,0.10430926,1707.2,1706.8,0.14641]
[1659230921712,3.40430926,1707.2,1706.8,0.14641]
[1659230922107,3.70430926,1707.2,1706.8,0.14641]
[1659230924817,3.6,1707.2,1706.8,0.14641]
[1659230925017,2.9016,1707.3,1706.9,3.5]
[1659230926564,3.5016,1707.3,1706.9,3.5]
[1659230927129,0.6,1707.3,1706.9,3.5]
[1659230927330,0.3,1707.3,1706.9,3.5]
[1659230927530,8.3182,1707.4,1706.9,3.5]
[1659230930588,0.3,1707.4,1707.0,2.89804672]
[1659230930787,0.3,1707.4,1707.0,3.33784672]
[1659230930997,3.6,1707.5,1707.0,3.33784672]
[1659230931158,3.6,1707.5,1707.0,2.89804672]
[1659230931159,3.96089277,1707.5,1707.0,2.89804672]
[1659230931570,3.96089277,1707.5,1706.9,3.9398]
[1659230931747,3.96089277,1707.5,1706.9,3.5]
[1659230932946,7.46089277,1707.5,1706.8,0.14641]
[1659230933175,10.79863949,1707.5,1706.8,0.14641]
[1659230933435,8.29863949,1707.5,1706.7,0.05]
[1659230933576,2.7341,1707.4,1706.6,0.05]
[1659230933799,2.7341,1707.4,1706.6,2.89804672]
[1659230933800,3.36089277,1707.3,1706.6,2.89804672]
[1659230934093,3.96089277,1707.3,1706.6,2.89804672]
[1659230934254,7.18939277,1707.3,1706.6,2.89804672]
[1659230934454,7.18939277,1707.3,1706.7,3.5]
[1659230934949,9.92349277,1707.3,1706.7,3.5]
[1659230937198,9.92349277,1707.3,1706.5,6.70442797]
[1659230937402,17.76529277,1707.3,1706.5,9.55247469]
[1659230937616,20.66333949,1707.3,1706.5,9.55247469]
[1659230937771,0.10430926,1707.2,1706.5,3.35874]
[1659230937973,0.10430926,1707.2,1706.5,0.14644]
[1659230937974,3.00235598,1707.2,1706.5,0.14644]
[1659230938176,6.93784672,1707.1,1706.4,7.5826]
[1659230938375,6.93784672,1707.1,1706.3,3.301]
[1659230938709,9.69484672,1707.1,1706.3,6.14904672]
[1659230940413,0.10430926,1706.8,1706.3,3.251]
[1659230940772,0.40430926,1706.8,1706.3,3.251]
[1659230940991,0.40430926,1706.8,1706.1,10.97527]
[1659230941201,0.40430926,1706.8,1706.2,2.89804672]
[1659230941608,0.76520203,1706.8,1706.2,2.89804672]
[1659230941778,0.76520203,1706.8,1706.2,6.39804672]
[1659230942115,0.3,1706.8,1706.2,10.43373746]
[1659230942976,0.3,1706.8,1706.2,10.33804672]
[1659230944918,0.3,1706.8,1706.2,9.89804672]
[1659230945420,0.3,1706.8,1706.2,6.39804672]
[1659230945626,0.66089277,1706.8,1706.2,6.39804672]
[1659230946699,0.10430926,1706.7,1706.1,7.66857]
[1659230946880,0.10430926,1706.7,1706.1,10.56661672]
[1659230947079,0.1021257,1706.7,1706.1,10.56661672]
[1659230947307,3.1021257,1706.7,1706.1,10.56661672]
[1659230947631,3.7021257,1706.7,1706.1,10.56661672]
[1659230947783,3.6,1706.7,1706.1,10.56661672]
[1659230949285,3.6,1706.7,1706.1,7.66857]
[1659230956014,2.9667,1706.8,1706.4,0.0978743]
[1659230956219,2.9667,1706.8,1706.4,3.53962629]
[1659230957326,2.9667,1706.8,1706.5,2.89804672]
[1659230957327,0.3,1706.8,1706.5,2.89804672]
[1659230957629,1.6,1707.0,1706.5,2.89804672]
[1659230958192,1.6,1707.0,1706.4,3.58237102]
[1659230958719,1.6,1707.0,1706.4,3.48449672]
[1659230959426,1.6,1707.0,1706.4,3.04449672]
[1659230959586,1.96089277,1707.0,1706.4,3.04449672]
[1659230959803,8.35893949,1707.0,1706.4,0.14645]
[1659230960003,0.1021257,1706.8,1706.4,0.14645]
[1659230960403,0.46301847,1706.8,1706.4,0.14645]
[1659230960646,0.76301847,1706.8,1706.4,0.14645]
[1659230961023,3.65139277,1706.8,1706.4,0.14645]
[1659230961222,3.0,1706.7,1706.4,0.14645]
[1659230961524,3.6,1706.7,1706.4,0.14645]
[1659230963229,0.6,1706.7,1706.4,0.14645]
[1659230963409,3.35139277,1706.8,1706.4,0.14645]
[1659230964335,2.9905,1706.8,1706.4,0.14645]
[1659230964747,3.5905,1706.8,1706.4,0.14645]
[1659230965328,3.5905,1706.8,1706.4,0.2443243]
[1659230965512,3.5905,1706.8,1706.5,3.5]
[1659230965513,0.6,1706.8,1706.5,3.5]
[1659230965718,0.3,1706.8,1706.5,3.5]
[1659230966414,0.3,1706.8,1706.4,3.14237102]
[1659230966614,0.3,1706.8,1706.4,0.2443243]
[1659230967254,0.3,1706.8,1706.4,3.7443243]
[1659230967462,0.3,1706.8,1706.4,0.2443243]
[1659230969640,0.3,1706.8,1706.4,0.14645]
[1659230970039,0.7399,1706.8,1706.4,0.14645]
[1659230970242,3.3,1706.8,1706.4,0.14645]
[1659230972553,3.7399,1706.8,1706.4,0.14645]
[1659230974354,6.7031,1706.8,1706.4,0.14645]
[1659230976891,6.2632,1706.8,1706.4,0.14645]
[1659230978879,6.2595429,1706.8,1706.4,0.14645]
[1659230986496,3.2963429,1706.8,1706.5,0.0978743]
[1659230987330,0.2963429,1706.8,1706.5,0.0978743]
[1659230988835,3.3027,1706.9,1706.5,3.5978743]
[1659230990682,3.9027,1706.9,1706.5,3.5978743]
[1659230992553,3.9027,1706.9,1706.4,3.84645]
[1659230992554,3.9027,1706.9,1706.4,0.14645]
[1659230992771,3.0,1706.8,1706.4,0.14645]
[1659230995249,5.9244,1706.8,1706.4,0.14645]
[1659231001286,5.92111878,1706.8,1706.4,0.14645]
[1659231001999,2.99671878,1706.8,1706.4,0.14645]
[1659231002201,2.99671878,1706.8,1706.4,3.04449672]
[1659231002789,3.9027,1706.9,1706.4,3.04449672]
[1659231005331,0.3,1706.9,1706.5,2.89804672]
[1659231005534,3.6,1707.0,1706.5,6.19354169]
[1659231005732,17.1783,1707.1,1706.7,3.5]
[1659231005733,5.7976,1707.1,1706.7,3.5]
[1659231006169,0.05,1707.4,1706.8,2.89804672]
[1659231006345,0.4897,1707.5,1706.8,2.89804672]
[1659231006559,0.4397,1707.5,1706.8,2.89804672]
[1659231007573,0.80059277,1707.5,1706.8,2.89804672]
[1659231007881,0.80059277,1707.5,1706.7,7.05]
[1659231007882,2.89804672,1707.4,1706.7,7.19641]
[1659231008049,2.89804672,1707.4,1706.7,3.64641]
[1659231008050,0.4397,1707.3,1706.7,3.64641]
[1659231008246,3.63774672,1707.3,1706.7,3.64641]
[1659231008450,3.3,1707.2,1706.8,0.0978743]
[1659231008718,0.3,1707.2,1706.8,0.0978743]
[1659231008872,6.4478,1707.3,1706.7,10.04445672]
[1659231009041,3.0,1707.2,1706.7,6.54445672]
[1659231009240,0.24399255,1706.8,1706.7,3.64641]
[1659231009475,0.24399255,1706.8,1706.7,6.54445672]
[1659231009661,0.24399255,1706.8,1706.7,3.04445672]
[1659231009869,0.24399255,1706.8,1706.7,0.14641]
[1659231010042,0.24399255,1706.8,1706.4,0.14645]
[1659231010251,3.14203927,1706.8,1706.4,0.14645]
[1659231010439,3.14203927,1706.8,1706.1,0.49]
[1659231010440,0.1021257,1706.6,1706.1,0.05]
[1659231010641,0.1021257,1706.6,1705.9,0.3591]
[1659231010642,0.1021257,1706.4,1705.9,0.3591]
[1659231010860,0.1021257,1706.4,1705.9,0.3091]
[1659231010861,0.1021257,1706.1,1705.9,0.3091]
[1659231011279,0.46301847,1706.0,1705.9,0.3091]
[1659231011585,3.36106519,1706.0,1705.5,0.05]